bitfinex/quotes_SOLUSD_20230116
["timestamp","ask_amount","ask_price","bid_price","bid_amount"]
[1673830808648,20.0,23.038,23.014,20.0]
[1673830808975,20.0,23.038,23.001,108.7788]
[1673830808976,69.57,23.037,23.003,118.2919]
[1673830809197,91.03196354,23.037,23.003,118.2919]
[1673830809393,11.52942291,23.036,23.003,118.2919]
[1673830809605,11.52942291,23.036,22.99,100.3272]
[1673830809606,24.01,23.03,22.999,4.084]
[1673830809928,86.04196354,23.029,22.991,157.71886354]
[1673830810138,227.53959865,23.029,22.992,5.01846]
[1673830810331,24.01,23.02,22.991,141.5149]
[1673830810540,89.6,23.019,22.99,100.3272]
[1673830810752,122.59138645,23.019,22.981,6.05]
[1673830810960,24.01,23.01,22.981,120.6189]
[1673830811170,69.61,23.009,22.981,114.5689]
[1673830811476,31.52942291,23.008,22.982,20.0]
[1673830811681,32.61,23.007,22.982,41.46196354]
[1673830811896,32.61,23.008,22.983,9.96443]
[1673830812101,20.0,23.009,22.984,5.02021]
[1673830812425,20.0,23.01,22.985,4.944]
[1673830812743,20.0,23.01,22.986,46.48173354]
[1673830812952,130.03996354,23.018,22.986,46.48173354]
[1673830812953,32.6,23.018,22.99,23.92]
[1673830813156,32.59,23.022,22.991,27.49568]
[1673830813371,21.46196354,23.026,22.992,5.01846]
[1673830813595,11.52942291,23.021,22.994,20.0]
[1673830813779,52.6,23.02,22.992,26.48042354]
[1673830814112,20.0,23.019,22.994,20.0]
[1673830814429,49.6,23.018,22.995,17.0]
[1673830814638,20.0,23.017,22.995,17.0]
[1673830814834,32.6,23.016,22.994,17.0]
[1673830815044,32.6,23.016,22.995,20.0]
[1673830815250,32.6,23.018,22.996,17.0]
[1673830815459,20.0,23.017,22.997,20.0]
[1673830815675,20.0,23.017,22.998,17.0]
[1673830816097,20.0,23.017,22.993,26.421]
[1673830816430,69.6,23.016,22.99,21.46196354]
[1673830816741,69.6,23.016,22.991,17.0]
[1673830816742,20.0,23.015,22.991,17.0]
[1673830816939,69.6,23.014,22.991,17.0]
[1673830817144,20.0,23.013,22.991,20.0]
[1673830817355,32.61,23.012,22.992,21.46196354]
[1673830817569,20.0,23.017,22.992,21.46196354]
[1673830817570,32.6,23.016,22.993,20.0]
[1673830817985,32.6,23.016,22.993,41.46196354]
[1673830818202,20.0,23.017,22.991,20.0]
[1673830818404,20.0,23.015,22.992,37.0]
[1673830818620,32.1,23.014,22.992,37.0]
[1673830819141,20.0,23.013,22.993,20.0]
[1673830819346,20.0,23.013,22.991,20.0]
[1673830819347,31.52942291,23.013,22.991,20.0]
[1673830819580,20.0,23.011,22.983,25.127]
[1673830819798,52.61,23.01,22.983,20.0]
[1673830819977,64.13942291,23.01,22.983,20.0]
[1673830820191,32.61,23.01,22.987,5.01955]
[1673830820404,32.6,23.016,22.991,20.0]
[1673830820631,20.0,23.029,22.991,20.0]
[1673830820632,32.6,23.018,22.992,10.75646]
[1673830820831,32.6,23.02,22.993,22.01824]
[1673830821046,32.6,23.02,22.994,32.02203]
[1673830821047,20.0,23.018,22.994,32.02203]
[1673830821260,52.6,23.018,22.995,17.0]
[1673830821459,20.0,23.018,22.996,20.0]
[1673830821670,20.0,23.019,22.997,17.0]
[1673830822315,32.6,23.02,22.998,20.0]
[1673830822524,21.46196354,23.025,23.001,20.0]
[1673830822713,20.0,23.024,23.002,5.01628]
[1673830822924,52.59,23.024,23.003,17.0]
[1673830823150,21.46196354,23.026,23.003,17.0]
[1673830823368,20.0,23.024,23.004,20.0]
[1673830823574,20.0,23.024,23.005,17.0]
[1673830823777,32.58,23.028,23.005,17.0]
[1673830823995,20.0,23.027,23.005,17.0]
[1673830824515,32.59,23.026,23.005,17.0]
[1673830824721,20.0,23.025,23.005,17.0]
[1673830825344,20.0,23.023,23.003,17.0]
[1673830825549,32.59,23.022,23.001,17.0]
[1673830825762,32.59,23.022,23.002,20.0]
[1673830825972,41.46196354,23.023,23.003,17.0]
[1673830826416,20.0,23.025,23.004,20.0]
[1673830826608,54.05196354,23.026,23.005,17.0]
[1673830826940,21.46196354,23.024,23.005,17.0]
[1673830827149,32.59,23.023,23.005,17.0]
[1673830827342,32.59,23.023,23.004,20.0]
[1673830827550,32.59,23.023,23.005,17.0]
[1673830827870,32.59,23.026,23.005,17.0]
[1673830828306,20.0,23.025,23.005,20.0]
[1673830828497,32.59,23.024,23.004,17.0]
[1673830828703,44.11942291,23.024,23.002,20.0]
[1673830828918,44.11942291,23.024,22.997,11.8]
[1673830828919,20.0,23.023,22.999,20.0]
[1673830829123,32.59,23.022,23.0,20.0]
[1673830829334,32.59,23.022,23.001,20.0]
[1673830829755,32.59,23.026,23.003,20.0]
[1673830829983,32.58,23.028,23.004,12.02]
[1673830830190,32.57,23.037,23.005,25.01563]
[1673830830388,32.58,23.033,23.007,20.0]
[1673830830596,54.04196354,23.033,23.01,23.95]
[1673830830806,115.7544,23.037,23.011,56.56432]
[1673830831013,54.03196354,23.039,23.013,20.0]
[1673830831238,54.03196354,23.039,23.014,32.54]
[1673830831455,41.46196354,23.038,23.015,20.0]
[1673830831647,32.57,23.037,23.016,17.0]
[1673830831862,20.0,23.036,23.016,17.0]
[1673830832077,20.0,23.036,23.017,20.0]
[1673830832274,20.0,23.036,23.018,17.0]
[1673830832481,54.03196354,23.037,23.018,56.55446254]
[1673830832920,32.57,23.037,23.018,17.0]
[1673830833136,21.46196354,23.038,23.018,56.55446254]
[1673830833351,21.46196354,23.038,23.019,20.0]
[1673830833542,21.46196354,23.038,23.018,17.0]
[1673830833762,32.57,23.037,23.015,20.0]
[1673830834084,41.46196354,23.036,23.013,20.0]
[1673830834398,20.0,23.034,23.015,39.55446254]
[1673830834798,52.58,23.033,23.01,23.95]
[1673830835013,74.04196354,23.033,23.007,20.0]
[1673830835231,11.52942291,23.032,23.008,17.0]
[1673830835431,72.58,23.031,23.009,20.0]
[1673830835642,72.58,23.031,23.011,20.0]
[1673830835866,84.10942291,23.031,23.012,17.0]
[1673830836079,62.51254063,23.031,23.012,17.0]
[1673830836285,115.2897,23.033,23.013,20.0]
[1673830836502,115.2897,23.033,23.014,17.0]
[1673830836687,74.04196354,23.032,23.014,20.0]
[1673830836905,94.04196354,23.032,23.008,21.75452439]
[1673830837129,94.04196354,23.032,23.001,147.6993]
[1673830837341,21.46196354,23.031,23.001,169.54049105]
[1673830837546,32.58,23.03,23.008,24.09452439]
[1673830837753,115.2897,23.033,23.01,24.01]
[1673830837962,115.2897,23.033,23.011,24.41432]
[1673830838175,115.2897,23.033,23.013,20.0]
[1673830838386,115.2897,23.033,23.014,17.0]
[1673830838925,115.2897,23.033,23.014,36.39013072]
[1673830839124,23.89,23.03,23.011,24.09452439]
[1673830839443,84.10942291,23.029,23.003,20.0]
[1673830839655,20.0,23.028,23.003,44.09452439]
[1673830839850,32.59,23.027,23.004,23.66399645]
[1673830840057,54.05196354,23.027,23.001,231.2207]
[1673830840394,41.46196354,23.026,23.002,20.0]
[1673830840604,20.0,23.024,23.002,20.0]
[1673830840923,32.59,23.023,23.002,20.0]
[1673830841319,32.59,23.023,23.003,37.0]
[1673830841529,32.59,23.023,23.003,20.0]
[1673830841762,32.59,23.023,23.004,20.0]
[1673830842278,32.58,23.028,23.004,56.39013072]
[1673830842490,32.58,23.028,23.004,25.01585]
[1673830842703,41.46196354,23.027,23.004,25.01585]
[1673830842917,69.59,23.026,23.002,20.0]
[1673830843130,69.59,23.026,22.992,136.9456]
[1673830843131,25.74,23.02,22.992,136.9456]
[1673830843343,72.6,23.019,22.992,136.9456]
[1673830843657,94.06196354,23.019,22.992,136.9456]
[1673830843863,21.46196354,23.018,22.992,136.9456]
[1673830844055,32.6,23.017,22.992,135.4456]
[1673830844270,20.0,23.016,22.992,135.4456]
[1673830844495,32.6,23.015,22.993,17.0]
[1673830844698,20.0,23.014,22.994,20.0]
[1673830844899,20.0,23.014,22.995,17.0]
[1673830845109,32.6,23.015,22.996,20.0]
[1673830845650,32.6,23.016,22.996,20.0]
[1673830845964,32.6,23.016,22.994,20.0]
[1673830846173,37.0,23.015,22.982,20.0]
[1673830846365,52.6,23.014,22.982,20.0]
[1673830846572,37.0,23.013,22.982,20.0]
[1673830846786,32.61,23.012,22.982,20.0]
[1673830847013,32.61,23.012,22.99,25.69]
[1673830847203,32.61,23.013,22.991,20.0]
[1673830847628,20.0,23.015,22.993,20.0]
[1673830847860,32.6,23.014,22.994,17.0]
[1673830848072,32.6,23.016,22.994,17.0]
[1673830848258,32.6,23.016,22.995,20.0]
[1673830848478,52.6,23.017,22.996,17.0]
[1673830848806,52.6,23.017,22.995,20.0]
[1673830849009,52.6,23.017,22.994,21.46196354]
[1673830849336,74.06196354,23.017,22.991,20.0]
[1673830849523,17.0,23.016,22.991,20.0]
[1673830849734,32.6,23.015,22.991,20.0]
[1673830849945,20.0,23.013,22.991,20.0]
[1673830850171,32.6,23.016,22.992,20.0]
[1673830850371,20.0,23.016,22.994,20.0]
[1673830850583,32.6,23.015,22.995,17.0]
[1673830850789,20.0,23.016,22.995,17.0]
[1673830851017,32.6,23.015,22.995,17.0]
[1673830851629,32.6,23.017,22.995,17.0]
[1673830851849,32.6,23.017,22.996,20.0]
[1673830852060,20.0,23.016,22.996,20.0]
[1673830852283,32.6,23.015,22.996,20.0]
[1673830853347,32.6,23.016,22.996,20.0]
[1673830854474,32.6,23.017,22.996,20.0]
[1673830854791,20.0,23.016,22.996,20.0]
[1673830855012,20.0,23.014,22.996,20.0]
[1673830855207,32.6,23.015,22.997,17.0]
[1673830855419,20.0,23.014,22.994,20.0]
[1673830855628,25.58,23.01,22.992,20.0]
[1673830855839,52.61,23.009,22.99,20.0]
[1673830856272,32.61,23.009,22.99,20.0]
[1673830856490,32.6,23.017,22.991,20.0]
[1673830856681,32.6,23.017,22.991,25.493]
[1673830857116,32.6,23.017,22.993,20.0]
[1673830857328,32.6,23.017,22.994,17.0]
[1673830857520,54.06196354,23.017,22.994,17.0]
[1673830857967,54.06196354,23.017,22.993,20.0]
[1673830858273,20.0,23.016,22.993,20.0]
[1673830858497,32.6,23.015,22.993,20.0]
[1673830858678,54.06196354,23.015,22.993,20.0]
[1673830858889,20.0,23.013,22.993,20.0]
[1673830859093,49.61,23.012,22.993,20.0]
[1673830859307,20.0,23.011,22.993,20.0]
[1673830859743,21.46196354,23.01,22.993,20.0]
[1673830859947,21.46196354,23.01,22.991,20.0]
[1673830860164,40.0,23.009,22.982,20.0]
[1673830860372,49.61,23.008,22.986,20.0]
[1673830860589,20.0,23.007,22.98,20.0]
[1673830860898,71.08196354,23.006,22.974,21.46196354]
[1673830861109,71.08196354,23.006,22.975,25.629]
[1673830861110,54.08196354,23.006,22.975,25.629]
[1673830861427,54.08196354,23.006,22.98,25.76]
[1673830861428,32.62,23.006,22.98,25.76]
[1673830861639,118.7052,23.007,22.981,5.627]
[1673830861840,118.7052,23.007,22.982,37.0]
[1673830862051,20.0,23.006,22.983,20.0]
[1673830862248,52.62,23.006,22.984,17.0]
[1673830862583,52.62,23.006,22.982,37.0]
[1673830862584,52.62,23.006,22.982,20.0]
[1673830862777,74.08196354,23.006,22.982,20.0]
[1673830862987,20.0,23.004,22.982,20.0]
[1673830863197,32.62,23.003,22.977,20.0]
[1673830863621,32.62,23.003,22.978,5.628]
[1673830863829,25.76,23.0,22.975,20.0]
[1673830864046,20.0,22.998,22.971,20.0]
[1673830864373,20.0,22.996,22.971,20.0]
[1673830864561,32.63,22.995,22.971,20.0]
[1673830864780,110.0937,22.995,22.971,20.0]
[1673830864986,20.0,22.993,22.971,20.0]
[1673830865732,25.76,22.99,22.972,21.76987132]
[1673830865944,20.0,22.988,22.972,21.76987132]
[1673830866158,32.64,22.987,22.964,20.0]
[1673830867315,32.64,22.987,22.965,21.46196354]
[1673830868054,32.64,22.987,22.97,25.69]
[1673830868270,32.63,22.994,22.971,25.859]
[1673830868581,32.63,22.994,22.971,20.0]
[1673830868895,20.0,22.993,22.971,20.0]
[1673830869086,32.64,22.992,22.97,25.69]
[1673830869295,32.63,22.997,22.971,20.0]
[1673830869515,32.13,22.999,22.972,11.18783]
[1673830869732,41.46196354,22.998,22.973,5.02261]
[1673830869943,20.0,22.996,22.974,20.0]
[1673830870134,20.0,22.996,22.975,17.0]
[1673830870468,20.0,22.996,22.976,20.0]
[1673830870780,74.09196354,22.997,22.976,20.0]
[1673830870980,54.09196354,22.997,22.977,17.0]
[1673830871189,32.63,22.997,22.977,17.0]
[1673830871935,32.63,22.997,22.977,15.5]
[1673830872336,54.09196354,22.997,22.977,15.5]
[1673830872544,54.09196354,22.997,22.974,20.0]
[1673830872981,20.0,22.996,22.974,20.0]
[1673830873193,32.63,22.995,22.972,20.0]
[1673830873387,32.63,22.995,22.971,40.0]
[1673830873599,54.09196354,22.995,22.971,20.0]
[1673830873832,41.46196354,22.994,22.972,20.0]
[1673830874023,32.63,22.993,22.972,20.0]
[1673830874236,25.58,22.99,22.971,20.0]
[1673830874450,25.58,22.99,22.965,9.418]
[1673830874688,52.64,22.989,22.969,20.0]
[1673830874881,32.64,22.989,22.969,20.0]
[1673830875090,25.58,22.99,22.969,20.0]
[1673830875830,25.58,22.99,22.971,20.0]
[1673830876033,25.58,22.99,22.971,40.0]
[1673830876439,25.58,22.99,22.971,20.0]
[1673830876652,32.64,22.989,22.97,20.0]
[1673830877179,32.64,22.989,22.969,20.0]
[1673830877383,25.58,22.99,22.969,20.0]
[1673830877600,25.58,22.99,22.967,20.0]
[1673830877915,25.58,22.99,22.964,20.0]
[1673830877916,20.0,22.988,22.964,29.601]
[1673830878137,149.9415,22.987,22.959,6.237]
[1673830878464,171.40346354,22.987,22.958,26.238]
[1673830878678,17.0,22.986,22.958,26.238]
[1673830878889,52.65,22.985,22.958,26.238]
[1673830879298,25.76,22.98,22.959,20.0]
[1673830879712,20.0,22.978,22.959,20.0]
[1673830880772,20.0,22.979,22.954,20.0]
[1673830880980,20.0,22.979,22.955,27.1]
[1673830881714,20.0,22.979,22.956,20.0]
[1673830881948,20.0,22.979,22.957,27.706]
[1673830882131,25.76,22.98,22.957,27.706]
[1673830882344,25.76,22.98,22.958,21.46196354]
[1673830882786,25.76,22.98,22.959,40.0]
[1673830883709,20.0,22.979,22.959,40.0]
[1673830884028,20.0,22.979,22.959,20.0]
[1673830884232,20.0,22.979,22.956,20.0]
[1673830884454,25.76,22.98,22.958,20.0]
[1673830884663,20.0,22.979,22.958,20.0]
[1673830884881,20.0,22.979,22.959,20.0]
[1673830885288,25.76,22.98,22.961,20.0]
[1673830885613,25.76,22.98,22.962,17.0]
[1673830886224,25.76,22.98,22.96,17.0]
[1673830886432,25.76,22.98,22.961,20.0]
[1673830886656,25.76,22.98,22.962,17.0]
[1673830887061,149.9415,22.987,22.962,17.0]
[1673830887703,41.46196354,22.986,22.962,17.0]
[1673830887927,32.65,22.985,22.962,17.0]
[1673830888140,25.63,22.98,22.96,17.0]
[1673830888538,25.13,22.98,22.96,17.0]
[1673830888748,25.13,22.98,22.961,20.0]
[1673830888964,25.13,22.98,22.962,17.0]
[1673830889173,25.13,22.98,22.963,20.0]
[1673830889482,117.3015,22.987,22.964,17.0]
[1673830889483,32.65,22.983,22.964,17.0]
[1673830889692,32.64,22.986,22.965,40.0]
[1673830889920,32.64,22.989,22.966,25.982]
[1673830890136,117.9272,22.99,22.966,25.982]
[1673830890338,117.9272,22.99,22.967,20.0]
[1673830890550,117.9272,22.99,22.969,20.0]
[1673830890752,20.0,22.989,22.966,17.0]
[1673830890955,52.64,22.988,22.963,30.9]
[1673830891170,52.64,22.988,22.962,49.42606072]
[1673830891486,52.64,22.988,22.959,11.27]
[1673830891701,20.0,22.987,22.96,45.76]
[1673830891918,32.64,22.986,22.96,45.76]
[1673830892131,17.0,22.985,22.96,20.0]
[1673830892447,44.17942291,22.984,22.955,11.2]
[1673830892643,20.0,22.982,22.953,11.2]
[1673830892854,144.662,22.981,22.955,11.78]
[1673830893072,144.662,22.981,22.96,25.69]
[1673830893270,112.012,22.981,22.96,25.69]
[1673830893476,112.012,22.981,22.961,30.12]
[1673830893691,112.012,22.981,22.962,20.0]
[1673830893903,112.012,22.981,22.963,17.0]
[1673830894112,112.012,22.981,22.962,20.0]
[1673830894958,117.9272,22.99,22.962,38.48]
[1673830895173,117.9272,22.99,22.97,25.76]
[1673830895377,117.9272,22.99,22.971,37.0]
[1673830895998,32.63,22.998,22.971,37.0]
[1673830896229,20.0,22.997,22.971,58.26]
[1673830896425,99.4398,22.998,22.972,5.02283]
[1673830896759,20.0,22.996,22.974,20.0]
[1673830896942,20.0,22.996,22.975,17.0]
[1673830897153,32.63,22.997,22.975,17.0]
[1673830897359,32.63,22.997,22.976,20.0]
[1673830897589,32.63,22.997,22.978,20.0]
[1673830897997,32.63,22.997,22.979,17.0]
[1673830898413,20.0,22.996,22.979,17.0]
[1673830898627,20.0,22.994,22.979,17.0]
[1673830899485,20.0,22.994,22.977,17.0]
[1673830899692,20.0,22.994,22.975,17.0]
[1673830900108,32.62,23.003,22.98,25.69]
[1673830900435,32.62,23.003,22.981,37.0]
[1673830900631,52.61,23.009,22.982,20.0]
[1673830900973,52.61,23.009,22.983,17.0]
[1673830901171,52.61,23.009,22.983,59.15272739]
[1673830901482,52.61,23.009,22.984,42.15272739]
[1673830901677,20.0,23.008,22.985,17.0]
[1673830901887,32.61,23.007,22.985,17.0]
[1673830902102,32.61,23.007,22.986,42.15272739]
[1673830902319,54.07196354,23.007,22.987,17.0]
[1673830902527,25.76,23.0,22.981,49.80690484]
[1673830902737,72.63,22.999,22.97,145.7567]
[1673830903271,80.95034858,22.998,22.97,145.7567]
[1673830903460,20.0,22.996,22.972,20.0]
[1673830903674,20.0,22.996,22.972,25.02283]
[1673830903675,32.63,22.995,22.972,25.02283]
[1673830903888,20.0,22.996,22.973,5.02261]
[1673830904205,57.49987038,23.003,22.98,25.69]
[1673830904405,115.0802,23.019,22.99,25.69]
[1673830904615,115.0802,23.019,22.991,25.01868]
[1673830904844,32.6,23.018,22.992,22.01846]
[1673830905188,32.6,23.018,22.994,20.0]
[1673830905372,32.6,23.018,22.995,17.0]
[1673830905587,32.6,23.018,22.996,20.0]
[1673830905795,11.52942291,23.017,22.996,20.0]
[1673830906003,32.6,23.016,22.994,20.0]
[1673830906219,32.6,23.016,22.982,144.2516]
[1673830906546,20.0,23.009,22.981,52.65]
[1673830906750,170.0078,23.008,22.981,20.0]
[1673830906943,20.0,23.007,22.98,25.69]
[1673830907155,32.62,23.006,22.981,32.65]
[1673830907366,32.62,23.006,22.981,37.67087]
[1673830907591,117.3978,23.008,22.982,25.02065]
[1673830907785,117.3978,23.008,22.983,37.67043]
[1673830907999,117.3978,23.008,22.984,5.02021]
[1673830908212,117.3978,23.008,22.985,69.65]
[1673830908531,117.3978,23.008,22.986,20.0]
[1673830908741,117.3978,23.008,22.987,37.0]
[1673830908954,117.3978,23.008,22.988,20.0]
[1673830909270,117.3978,23.008,22.99,20.0]
[1673830909487,20.0,23.007,22.991,20.0]
[1673830909688,20.0,23.007,22.992,17.0]
[1673830910432,117.3978,23.008,22.992,17.0]
[1673830910838,161.53722291,23.008,22.992,17.0]
[1673830911042,20.0,23.007,22.991,20.0]
[1673830911269,32.61,23.008,22.992,17.0]
[1673830911463,149.5794,23.018,22.993,20.0]
[1673830911670,20.0,23.015,22.995,20.0]
[1673830911890,32.6,23.014,22.996,17.0]
[1673830912232,20.0,23.013,22.996,17.0]
[1673830912435,20.0,23.011,22.994,17.0]
[1673830913051,20.0,23.011,22.992,17.0]
[1673830913485,20.0,23.01,22.992,17.0]
[1673830913669,32.61,23.009,22.985,25.01999]
[1673830913883,20.0,23.008,22.985,25.01999]
[1673830914092,32.61,23.007,22.985,25.01999]
[1673830914317,20.0,23.006,22.985,25.01999]
[1673830914525,32.62,23.005,22.985,25.01999]
[1673830914846,20.0,23.006,22.986,17.0]
[1673830915476,32.62,23.005,22.986,17.0]
[1673830915790,52.62,23.006,22.987,20.0]
[1673830916011,52.62,23.006,22.988,17.0]
[1673830916202,32.62,23.006,22.988,17.0]
[1673830916836,32.62,23.006,22.989,20.0]
[1673830917050,117.0056,23.007,22.99,17.0]
[1673830917248,117.0056,23.007,22.986,20.0]
[1673830917458,52.62,23.006,22.986,20.0]
[1673830918625,52.62,23.006,22.985,5.01999]
[1673830918825,74.08196354,23.006,22.982,20.0]
[1673830919033,52.62,23.006,22.983,17.0]
[1673830919245,32.62,23.006,22.983,17.0]
[1673830919465,117.0056,23.007,22.984,25.02021]
[1673830919777,32.62,23.006,22.985,22.01999]
[1673830919990,20.0,23.005,22.987,20.0]
[1673830920224,20.0,23.005,22.988,17.0]
[1673830920441,32.62,23.004,22.988,17.0]
[1673830921066,21.46196354,23.003,22.976,32.66]
[1673830921272,20.0,23.001,22.973,32.66]
[1673830921468,52.62,23.0,22.974,25.02239]
[1673830921884,20.0,22.999,22.974,25.02239]
[1673830922097,32.63,22.998,22.974,25.02239]
[1673830922301,20.0,22.997,22.974,25.02239]
[1673830922853,136.4204,22.997,22.974,25.02239]
[1673830923262,20.0,22.996,22.974,25.02239]
[1673830923464,20.0,22.996,22.974,5.02239]
[1673830923678,32.63,22.995,22.974,5.02239]
[1673830923893,20.0,22.994,22.974,5.02239]
[1673830924098,32.63,22.993,22.971,20.0]
[1673830925171,32.63,22.996,22.971,52.66]
[1673830925348,32.63,22.996,22.973,5.02261]
[1673830925560,116.4204,22.997,22.973,40.14712314]
[1673830925788,116.4204,22.997,22.973,37.68261]
[1673830926109,116.4204,22.997,22.974,20.0]
[1673830926296,116.4204,22.997,22.976,20.0]
[1673830926509,32.63,22.999,22.977,22.02174]
[1673830926724,20.0,22.998,22.977,22.02174]
[1673830927149,32.63,22.999,22.977,22.02174]
[1673830927355,109.6223,23.001,22.98,25.69]
[1673830927663,20.0,23.0,22.982,20.0]
[1673830927995,11.52942291,22.999,22.981,34.57438384]
[1673830928195,20.0,22.997,22.972,20.0]
[1673830928411,32.63,22.996,22.97,25.76]
[1673830928612,20.0,22.995,22.97,25.76]
[1673830928814,145.1882,22.994,22.97,25.76]
[1673830929029,20.0,22.993,22.97,25.76]
[1673830929347,20.0,22.991,22.97,25.76]
[1673830929564,20.0,22.989,22.97,25.76]
[1673830929775,52.64,22.988,22.97,25.76]
[1673830929975,74.10196354,22.988,22.97,25.76]
[1673830930186,74.10196354,22.988,22.964,20.0]
[1673830930187,21.46196354,22.987,22.964,20.0]
[1673830930505,32.64,22.986,22.962,20.0]
[1673830930829,21.46196354,22.985,22.961,108.2029]
[1673830931048,148.3581,22.984,22.961,108.2029]
[1673830931269,20.0,22.983,22.961,108.2029]
[1673830931458,32.65,22.982,22.962,20.0]
[1673830932002,32.65,22.983,22.962,20.0]
[1673830932218,20.0,22.982,22.962,20.0]
[1673830932422,32.65,22.981,22.96,25.98]
[1673830932616,20.0,22.979,22.96,25.98]
[1673830932821,69.66,22.978,22.952,35.12451314]
[1673830933049,74.12196354,22.978,22.952,35.12451314]
[1673830933367,74.12196354,22.978,22.951,20.0]
[1673830933368,20.0,22.977,22.951,20.0]
[1673830933584,32.66,22.976,22.952,5.02721]
[1673830933780,32.66,22.977,22.954,20.0]
[1673830934189,20.0,22.976,22.954,20.0]
[1673830934823,32.66,22.975,22.954,20.0]
[1673830935456,32.66,22.977,22.954,20.0]
[1673830935876,32.66,22.977,22.955,17.0]
[1673830936087,20.0,22.976,22.956,20.0]
[1673830936308,32.66,22.975,22.956,20.0]
[1673830936515,32.66,22.975,22.954,20.0]
[1673830937782,44.18942291,22.975,22.954,20.0]
[1673830938197,32.66,22.975,22.954,20.0]
[1673830939049,32.66,22.975,22.955,17.0]
[1673830939237,32.66,22.975,22.954,20.0]
[1673830939238,20.0,22.976,22.956,20.0]
[1673830939449,32.66,22.975,22.956,20.0]
[1673830939659,32.66,22.976,22.954,20.0]
[1673830939874,21.46196354,22.975,22.953,20.0]
[1673830940091,21.46196354,22.975,22.95,20.0]
[1673830940092,20.0,22.973,22.95,20.0]
[1673830940309,52.66,22.972,22.948,20.0]
[1673830940500,91.12196354,22.972,22.948,20.0]
[1673830940711,74.12196354,22.972,22.948,20.0]
[1673830940919,52.66,22.972,22.948,20.0]
[1673830941130,45.63,22.97,22.945,20.0]
[1673830941345,69.67,22.969,22.945,20.0]
[1673830941565,69.67,22.969,22.942,142.3782]
[1673830941779,114.711,22.968,22.942,109.6682]
[1673830941971,49.67,22.967,22.942,109.6682]
[1673830942313,40.0,22.966,22.943,20.0]
[1673830942725,17.0,22.965,22.941,52.71]
[1673830942938,148.5984,22.964,22.942,20.0]